[Event "VII Lorca Open 2018"]
[Site "Lorca"]
[Date "2018.12.27"]
[Round "3"]
[White "Sreeshwan Maralakshikari"]
[Black "Solozhenkin, Evgeniy"]
[Result "0-1"]
[ECO "E52"]
[WhiteElo "2244"]
[BlackElo "2427"]
[Annotator "NA"]
[PlyCount "78"]
[EventDate "2018.12.26"]
[EventType "swiss"]
[EventCountry "ESP"]
[SourceTitle "playchess.com"]
[Source "ChessBase"]
[SourceQuality "1"]
[TimeControl "5400+30"]

1. d4 {[%emt 0:00:14]} Nf6 {[%emt 0:00:00]} 2. c4 {[%emt 0:00:04]} e6 {[%emt 0:00:03]} 3. Nc3 {[%emt 0:00:03]} Bb4 {[%emt 0:00:09]} 4. e3 {[%emt 0:00:03]} O-O {[%emt 0:01:02]} 5. Bd3 {[%emt 0:00:16]} d5 {[%emt 0:00:50]} 6. Nf3 {[%emt 0:00:06]} b6 {[%emt 0:00:32]} 7. O-O {[%emt 0:00:07]} Bb7 {[%emt 0:00:07]} 8. cxd5 {[%emt 0:00:03]} exd5 {[%emt 0:00:07]} 9. Bd2 {[%emt 0:00:04]} a6 {[%emt 0:05:39]} 10. Ne5 {[%emt 0:00:52]} Bd6 {[%emt 0:12:26]} 11. Rc1 {[%emt 0:00:06]} c5 {[%emt 0:04:06]} 12. f4 {[%emt 0:00:09]} Nc6 {[%emt 0:01:08]} 13. Na4 {[%emt 0:00:07]} c4 {[%emt 0:01:41]} 14. Bc2 {[%emt 0:00:30]} Ne7 {[%emt 0:07:40]} 15. g4 {[%emt 0:02:04]} b5 {[%emt 0:01:20]} 16. Nc3 {[%emt 0:03:37]} Ne4 {[%emt 0:00:39]} 17. Be1 {[%emt 0:05:21]} f6 {[%emt 0:01:07]} 18. Nf3 {[%emt 0:00:27]} Qd7 {[%emt 0:01:56]} 19. Nh4 {[%emt 0:02:42]} Rae8 {[%emt 0:07:27]} 20. Qf3 {[%emt 0:01:22]} g5 {[%emt 0:00:21]} 21. Ng2 {[%emt 0:01:27]} f5 {[%emt 0:01:38]} 22. gxf5 {[%emt 0:05:27]} Nxf5 {[%emt 0:06:14]} 23. Nxe4 {[%emt 0:07:30]} dxe4 {[%emt 0:00:06]} 24. Qg4 {[%emt 0:00:04]} Kh8 {[%emt 0:00:21]} 25. Bg3 {[%emt 0:42:22]} gxf4 {[%emt 0:06:27]} 26. Bxf4 {[%emt 0:04:27]} Rg8 {[%emt 0:02:33]} 27. Qh3 {[%emt 0:13:28]} Rxg2+ {[%emt 0:06:08]} 28. Kxg2 {[%emt 0:04:09]} Rg8+ {[%emt 0:00:06]} 29. Kh1 {[%emt 0:03:15]} Ng3+ {[%emt 0:00:12]} 30. Qxg3 {[%emt 0:00:26]} Rxg3 {[%emt 0:00:06]} 31. Bxd6 {[%emt 0:01:48]} Qxd6 {[%emt 0:03:51]} 32. hxg3 {[%emt 0:00:14]} Qh6+ {[%emt 0:00:06]} 33. Kg2 {[%emt 0:00:42]} Qxe3 {[%emt 0:00:07]} 34. Rf8+ {[%emt 0:02:04]} Kg7 {[%emt 0:00:05]} 35. Rcf1 {[%emt 0:00:02]} Qd2+ {[%emt 0:01:36]} 36. Kg1 {[%emt 0:00:07]} Bd5 {[%emt 0:09:09]} 37. R8f2 {[%emt 0:00:25]} Qg5 {[%emt 0:02:52]} 38. Kh2 {[%emt 0:01:07]} e3 {[%emt 0:01:40]} 39. Rf4 {[%emt 0:00:03]} Qh5+ {[%emt 0:00:07]} 0-1

[Event "VII Lorca Open 2018"]
[Site "Lorca"]
[Date "2018.12.27"]
[Round "3"]
[White "Martinez Fernandez, Adrian"]
[Black "Luch, Michal"]
[Result "1-0"]
[ECO "B03"]
[WhiteElo "2212"]
[BlackElo "2360"]
[Annotator "NA"]
[PlyCount "97"]
[EventDate "2018.12.26"]
[EventType "swiss"]
[EventCountry "ESP"]
[SourceTitle "playchess.com"]
[Source "ChessBase"]
[SourceQuality "1"]
[TimeControl "5400+30"]

1. e4 {[%emt 0:00:00]} Nf6 {[%emt 0:00:00]} 2. e5 {[%emt 0:00:00]} Nd5 {[%emt 0:00:00]} 3. d4 {[%emt 0:00:00]} d6 {[%emt 0:00:00]} 4. c4 {[%emt 0:00:07]} Nb6 {[%emt 0:00:00]} 5. exd6 {[%emt 0:00:11]} cxd6 {[%emt 0:00:00]} 6. Nc3 {[%emt 0:00:44]} g6 {[%emt 0:00:00]} 7. Be3 {[%emt 0:00:47]} Bg7 {[%emt 0:00:00]} 8. Rc1 {[%emt 0:00:13]} O-O {[%emt 0:00:00]} 9. b3 {[%emt 0:00:21]} Bf5 {[%emt 0:00:00]} 10. Nge2 {[%emt 0:01:47]} Nc6 {[%emt 0:12:28]} 11. Ng3 {[%emt 0:04:16]} Bd7 {[%emt 0:16:07]} 12. d5 {[%emt 0:02:00]} Nb4 {[%emt 0:00:27]} 13. Qd2 {[%emt 0:06:52]} a5 {[%emt 0:04:54]} 14. Be2 {[%emt 0:02:09]} Na6 {[%emt 0:07:24]} 15. Bh6 {[%emt 0:14:35]} Re8 {[%emt 0:06:51]} 16. Bxg7 {[%emt 0:12:15]} Kxg7 {[%emt 0:00:04]} 17. h4 {[%emt 0:00:10]} f6 {[%emt 0:02:01]} 18. h5 {[%emt 0:02:01]} g5 {[%emt 0:02:28]} 19. h6+ {[%emt 0:01:35]} Kh8 {[%emt 0:00:11]} 20. Nce4 {[%emt 0:01:05]} a4 {[%emt 0:06:50]} 21. Nxg5 {[%emt 0:01:31]} Rf8 {[%emt 0:00:06]} 22. N5e4 {[%emt 0:03:38]} axb3 {[%emt 0:00:05]} 23. axb3 {[%emt 0:00:06]} Nc5 {[%emt 0:00:56]} 24. Nxc5 {[%emt 0:01:24]} dxc5 {[%emt 0:00:02]} 25. Ne4 {[%emt 0:01:09]} Qc7 {[%emt 0:00:24]} 26. Qe3 {[%emt 0:01:47]} Rac8 {[%emt 0:01:47]} 27. O-O {[%emt 0:07:25]} Rg8 {[%emt 0:01:30]} 28. d6 {[%emt 0:02:10]} Qd8 {[%emt 0:00:02]} 29. Nxc5 {[%emt 0:04:35]} Bc6 {[%emt 0:01:47]} 30. Ne4 {[%emt 0:03:12]} e5 {[%emt 0:01:13]} 31. Ng3 {[%emt 0:01:55]} Nd7 {[%emt 0:00:51]} 32. Bd3 {[%emt 0:00:33]} Qf8 {[%emt 0:00:32]} 33. Bf5 {[%emt 0:01:01]} Rg5 {[%emt 0:08:17]} 34. b4 {[%emt 0:01:50]} Qxh6 {[%emt 0:03:43]} 35. b5 {[%emt 0:05:47]} Rxg3 {[%emt 0:07:28]} 36. Qxh6 {[%emt 0:07:55]} Rxg2+ {[%emt 0:00:03]} 37. Kh1 {[%emt 0:00:01]} Rg6+ {[%emt 0:00:12]} 38. bxc6 {[%emt 0:00:02]} Rxh6+ {[%emt 0:00:06]} 39. Kg2 {[%emt 0:00:02]} e4 {[%emt 0:03:15]} 40. Rfd1 {[%emt 0:02:34]} Rg8+ {[%emt 0:01:11]} 41. Kf1 {[%emt 0:00:02]} Ne5 {[%emt 0:00:20]} 42. c7 {[%emt 0:01:35]} Nd3 {[%emt 0:00:17]} 43. c8=Q {[%emt 0:02:44]} Nxc1 {[%emt 0:02:46]} 44. Qxg8+ {[%emt 0:02:34]} Kxg8 {[%emt 0:00:03]} 45. Rxc1 {[%emt 0:00:04]} Rh1+ {[%emt 0:00:18]} 46. Ke2 {[%emt 0:00:02]} Rxc1 {[%emt 0:00:09]} 47. d7 {[%emt 0:00:04]} Rc2+ {[%emt 0:00:14]} 48. Ke1 {[%emt 0:00:02]} Rc1+ {[%emt 0:00:20]} 49. Kd2 {[%emt 0:00:12]} 1-0

[Event "VII Lorca Open 2018"]
[Site "Lorca"]
[Date "2018.12.27"]
[Round "3"]
[White "Perez Garcia, Roberto"]
[Black "Serarols Mabras, Bernat"]
[Result "0-1"]
[ECO "E08"]
[WhiteElo "2149"]
[BlackElo "2371"]
[Annotator "NA"]
[PlyCount "76"]
[EventDate "2018.12.26"]
[EventType "swiss"]
[EventCountry "ESP"]
[SourceTitle "playchess.com"]
[Source "ChessBase"]
[SourceQuality "1"]
[TimeControl "5400+30"]

1. d4 {[%emt 0:02:21]} d5 {[%emt 0:00:00]} 2. Nf3 {[%emt 0:00:25]} Nf6 {[%emt 0:00:06]} 3. c4 {[%emt 0:00:05]} e6 {[%emt 0:00:09]} 4. g3 {[%emt 0:00:05]} Bb4+ {[%emt 0:00:11]} 5. Bd2 {[%emt 0:00:22]} Be7 {[%emt 0:00:21]} 6. Bg2 {[%emt 0:00:08]} c6 {[%emt 0:00:11]} 7. Qc2 {[%emt 0:00:06]} O-O {[%emt 0:00:26]} 8. O-O {[%emt 0:00:09]} b6 {[%emt 0:00:22]} 9. Rd1 {[%emt 0:01:03]} Nbd7 {[%emt 0:00:41]} 10. Bf4 {[%emt 0:00:30]} Ba6 {[%emt 0:01:12]} 11. Ne5 {[%emt 0:06:35]} Rc8 {[%emt 0:01:31]} 12. Qa4 {[%emt 0:05:17]} Nb8 {[%emt 0:09:14]} 13. cxd5 {[%emt 0:04:35]} b5 {[%emt 0:11:19]} 14. Qb3 {[%emt 0:00:44]} cxd5 {[%emt 0:00:30]} 15. a3 {[%emt 0:04:06]} Nfd7 {[%emt 0:07:32]} 16. Nc3 {[%emt 0:00:50]} Nxe5 {[%emt 0:02:37]} 17. Bxe5 {[%emt 0:02:18]} Qb6 {[%emt 0:04:19]} 18. e4 {[%emt 0:02:27]} dxe4 {[%emt 0:01:50]} 19. Bxb8 {[%emt 0:05:31]} Rxb8 {[%emt 0:06:39]} 20. Bxe4 {[%emt 0:00:36]} Kh8 {[%emt 0:08:04]} 21. Bg2 {[%emt 0:05:50]} Bb7 {[%emt 0:09:23]} 22. Bxb7 {[%emt 0:06:49]} Rxb7 {[%emt 0:01:19]} 23. d5 {[%emt 0:00:21]} e5 {[%emt 0:04:26]} 24. d6 {[%emt 0:03:08]} Bxd6 {[%emt 0:01:48]} 25. Qxb5 {[%emt 0:00:14]} Qxb5 {[%emt 0:03:01]} 26. Nxb5 {[%emt 0:00:02]} Be7 {[%emt 0:12:42]} 27. Rd5 {[%emt 0:02:59]} a6 {[%emt 0:01:04]} 28. Nc3 {[%emt 0:00:44]} Rxb2 {[%emt 0:00:18]} 29. Ne4 {[%emt 0:09:57]} f6 {[%emt 0:03:44]} 30. Rd7 {[%emt 0:00:14]} Bd8 {[%emt 0:01:47]} 31. Rc1 {[%emt 0:06:09]} Bb6 {[%emt 0:02:32]} 32. Rc6 {[%emt 0:00:06]} h6 {[%emt 0:00:51]} 33. Kh1 {[%emt 0:01:37]} f5 {[%emt 0:01:40]} 34. Nd6 {[%emt 0:00:54]} f4 {[%emt 0:01:57]} 35. Nf7+ {[%emt 0:03:08]} Kh7 {[%emt 0:00:31]} 36. gxf4 {[%emt 0:00:31]} exf4 {[%emt 0:00:45]} 37. Nxh6 {[%emt 0:05:50]} f3 {[%emt 0:00:21]} 38. h4 {[%emt 0:00:12]} Rf4 {[%emt 0:03:37]} 0-1

[Event "VII Lorca Open 2018"]
[Site "Lorca"]
[Date "2018.12.27"]
[Round "3"]
[White "Redondo Benavente, Ana"]
[Black "Morozov, Nichita"]
[Result "1/2-1/2"]
[ECO "B07"]
[WhiteElo "2140"]
[BlackElo "2439"]
[Annotator "NA"]
[PlyCount "94"]
[EventDate "2018.12.26"]
[EventType "swiss"]
[EventCountry "ESP"]
[SourceTitle "playchess.com"]
[Source "ChessBase"]
[SourceQuality "1"]
[TimeControl "5400+30"]

1. e4 {[%emt 0:01:25]} d6 {[%emt 0:00:00]} 2. d4 {[%emt 0:00:17]} g6 {[%emt 0:00:00]} 3. Nf3 {[%emt 0:01:15]} Nf6 {[%emt 0:00:09]} 4. Bd3 {[%emt 0:00:49]} Bg7 {[%emt 0:00:11]} 5. c3 {[%emt 0:01:31]} O-O {[%emt 0:01:31]} 6. O-O {[%emt 0:00:45]} c6 {[%emt 0:00:05]} 7. Nbd2 {[%emt 0:03:40]} Nbd7 {[%emt 0:00:48]} 8. Re1 {[%emt 0:00:43]} Qc7 {[%emt 0:00:56]} 9. a4 {[%emt 0:01:15]} e5 {[%emt 0:01:56]} 10. Qc2 {[%emt 0:06:54]} Re8 {[%emt 0:01:01]} 11. b3 {[%emt 0:05:14]} Nf8 {[%emt 0:07:05]} 12. Ba3 {[%emt 0:02:24]} Bg4 {[%emt 0:07:58]} 13. h3 {[%emt 0:07:15]} Bxf3 {[%emt 0:00:25]} 14. Nxf3 {[%emt 0:00:02]} Rad8 {[%emt 0:00:38]} 15. Rad1 {[%emt 0:00:20]} Nh5 {[%emt 0:00:20]} 16. Bf1 {[%emt 0:04:42]} Ne6 {[%emt 0:01:30]} 17. b4 {[%emt 0:15:44]} Rc8 {[%emt 0:09:28]} 18. dxe5 {[%emt 0:12:43]} dxe5 {[%emt 0:00:07]} 19. Re3 {[%emt 0:02:42]} Bf8 {[%emt 0:01:00]} 20. Red3 {[%emt 0:01:55]} Nf6 {[%emt 0:00:05]} 21. Bc1 {[%emt 0:01:15]} a5 {[%emt 0:00:39]} 22. Qb3 {[%emt 0:06:20]} c5 {[%emt 0:02:31]} 23. Re3 {[%emt 0:03:01]} c4 {[%emt 0:01:31]} 24. Qb1 {[%emt 0:02:34]} axb4 {[%emt 0:02:31]} 25. cxb4 {[%emt 0:00:09]} c3 {[%emt 0:00:01]} 26. Qb3 {[%emt 0:02:54]} c2 {[%emt 0:00:06]} 27. Rde1 {[%emt 0:01:28]} Qd6 {[%emt 0:11:40]} 28. Bd3 {[%emt 0:04:31]} Bh6 {[%emt 0:09:02]} 29. R3e2 {[%emt 0:01:34]} Bxc1 {[%emt 0:00:04]} 30. Rxc1 {[%emt 0:00:04]} Nf4 {[%emt 0:00:02]} 31. Rd2 {[%emt 0:03:37]} Qxd3 {[%emt 0:02:51]} 32. Qxd3 {[%emt 0:01:44]} Nxd3 {[%emt 0:00:02]} 33. Rxd3 {[%emt 0:00:07]} Rc4 {[%emt 0:00:02]} 34. Nd2 {[%emt 0:00:59]} Rc7 {[%emt 0:01:08]} 35. f3 {[%emt 0:01:27]} Nh5 {[%emt 0:00:03]} 36. Nb3 {[%emt 0:01:06]} Nf4 {[%emt 0:02:34]} 37. Rd2 {[%emt 0:00:02]} Rec8 {[%emt 0:01:38]} 38. Na1 {[%emt 0:01:29]} Rc4 {[%emt 0:00:35]} 39. Rcxc2 {[%emt 0:00:31]} h5 {[%emt 0:00:12]} 40. h4 {[%emt 0:00:52]} Ne6 {[%emt 0:00:12]} 41. Rxc4 {[%emt 0:00:33]} Rxc4 {[%emt 0:00:03]} 42. Nc2 {[%emt 0:00:19]} Nd4 {[%emt 0:00:09]} 43. Nxd4 {[%emt 0:00:59]} exd4 {[%emt 0:00:03]} 44. Rb2 {[%emt 0:01:24]} d3 {[%emt 0:00:01]} 45. Rd2 {[%emt 0:00:10]} Rxb4 {[%emt 0:00:04]} 46. Rxd3 {[%emt 0:00:05]} Rxa4 {[%emt 0:00:03]} 47. Rb3 {[%emt 0:00:18]} Ra7 {[%emt 0:00:56]} 1/2-1/2

[Event "VII Lorca Open 2018"]
[Site "Lorca"]
[Date "2018.12.27"]
[Round "3"]
[White "Barrios Munoz, Antonio Oscar"]
[Black "Arjun Kalyan"]
[Result "0-1"]
[ECO "D11"]
[WhiteElo "2126"]
[BlackElo "2406"]
[Annotator "NA"]
[PlyCount "104"]
[EventDate "2018.12.26"]
[EventType "swiss"]
[EventCountry "ESP"]
[SourceTitle "playchess.com"]
[Source "ChessBase"]
[SourceQuality "1"]
[TimeControl "5400+30"]

1. Nf3 {[%emt 0:00:06]} d5 {[%emt 0:00:00]} 2. g3 {[%emt 0:00:22]} Bg4 {[%emt 0:00:00]} 3. Bg2 {[%emt 0:01:26]} Nd7 {[%emt 0:00:04]} 4. d4 {[%emt 0:00:51]} c6 {[%emt 0:00:48]} 5. Nbd2 {[%emt 0:00:58]} Ngf6 {[%emt 0:00:13]} 6. O-O {[%emt 0:02:09]} e6 {[%emt 0:00:03]} 7. c4 {[%emt 0:12:31]} Be7 {[%emt 0:00:15]} 8. b3 {[%emt 0:03:14]} O-O {[%emt 0:00:09]} 9. Bb2 {[%emt 0:00:12]} a5 {[%emt 0:00:14]} 10. h3 {[%emt 0:05:10]} Bh5 {[%emt 0:01:05]} 11. g4 {[%emt 0:01:44]} Bg6 {[%emt 0:00:05]} 12. Nh4 {[%emt 0:05:02]} a4 {[%emt 0:03:35]} 13. Nxg6 {[%emt 0:01:10]} hxg6 {[%emt 0:00:02]} 14. Qc2 {[%emt 0:01:22]} Bb4 {[%emt 0:00:23]} 15. Nb1 {[%emt 0:06:10]} b5 {[%emt 0:08:13]} 16. cxb5 {[%emt 0:05:03]} cxb5 {[%emt 0:00:03]} 17. Qd3 {[%emt 0:00:39]} Qb6 {[%emt 0:08:39]} 18. e3 {[%emt 0:07:48]} a3 {[%emt 0:04:57]} 19. Bc3 {[%emt 0:04:08]} Bd6 {[%emt 0:01:18]} 20. b4 {[%emt 0:04:28]} Rfc8 {[%emt 0:02:09]} 21. Nd2 {[%emt 0:01:19]} Bb8 {[%emt 0:17:30]} 22. Rfc1 {[%emt 0:06:19]} Rc6 {[%emt 0:10:53]} 23. Nb3 {[%emt 0:03:27]} Qc7 {[%emt 0:01:23]} 24. Bd2 {[%emt 0:01:47]} Nb6 {[%emt 0:05:22]} 25. Rxc6 {[%emt 0:05:44]} Qxc6 {[%emt 0:00:01]} 26. Na5 {[%emt 0:01:53]} Qd7 {[%emt 0:00:44]} 27. Rb1 {[%emt 0:06:24]} Nc4 {[%emt 0:00:33]} 28. Be1 {[%emt 0:00:43]} g5 {[%emt 0:03:10]} 29. Kf1 {[%emt 0:02:32]} Bd6 {[%emt 0:01:53]} 30. Bc3 {[%emt 0:03:16]} Qe7 {[%emt 0:05:13]} 31. Nc6 {[%emt 0:03:52]} Qb7 {[%emt 0:03:36]} 32. Ne5 {[%emt 0:00:26]} Ne4 {[%emt 0:01:38]} 33. Nxc4 {[%emt 0:01:59]} bxc4 {[%emt 0:00:04]} 34. Qc2 {[%emt 0:00:27]} Nxc3 {[%emt 0:00:29]} 35. Qxc3 {[%emt 0:00:14]} Qb5 {[%emt 0:00:08]} 36. Bf3 {[%emt 0:01:16]} Ra4 {[%emt 0:01:02]} 37. Bd1 {[%emt 0:01:05]} Rxb4 {[%emt 0:00:07]} 38. Rxb4 {[%emt 0:00:44]} Bxb4 {[%emt 0:00:02]} 39. Qc2 {[%emt 0:00:24]} Be7 {[%emt 0:00:37]} 40. f3 {[%emt 0:00:54]} g6 {[%emt 0:00:17]} 41. Kf2 {[%emt 0:00:30]} Kg7 {[%emt 0:00:22]} 42. Be2 {[%emt 0:00:35]} Qb8 {[%emt 0:00:38]} 43. Kg2 {[%emt 0:00:19]} Qb2 {[%emt 0:00:11]} 44. Bd1 {[%emt 0:00:07]} Qb4 {[%emt 0:00:13]} 45. Kf2 {[%emt 0:00:47]} Bd8 {[%emt 0:00:01]} 46. e4 {[%emt 0:00:48]} Bb6 {[%emt 0:00:10]} 47. Be2 {[%emt 0:00:35]} Bxd4+ {[%emt 0:00:04]} 48. Kf1 {[%emt 0:00:18]} Kf6 {[%emt 0:00:25]} 49. exd5 {[%emt 0:00:19]} exd5 {[%emt 0:00:01]} 50. Bd1 {[%emt 0:00:44]} Qb2 {[%emt 0:00:28]} 51. Ke2 {[%emt 0:00:22]} Bc3 {[%emt 0:00:18]} 52. Ke3 {[%emt 0:00:46]} d4+ {[%emt 0:00:07]} 0-1

[Event "VII Lorca Open 2018"]
[Site "Lorca"]
[Date "2018.12.28"]
[Round "4"]
[White "Svetushkin, Dmitry"]
[Black "Roig Aguilar, Alejandro"]
[Result "1-0"]
[ECO "B51"]
[WhiteElo "2592"]
[BlackElo "2283"]
[Annotator "ChessBase"]
[PlyCount "38"]
[EventDate "2018.12.26"]
[EventType "swiss"]
[EventCountry "ESP"]
[SourceTitle "playchess.com"]
[Source "ChessBase"]
[SourceQuality "1"]
[TimeControl "5400+30"]

1. e4 {[%emt 0:00:00]} c5 {[%emt 0:00:58]} 2. Nf3 {[%emt 0:00:00]} d6 {[%emt 0:00:09]} 3. Bb5+ {[%emt 0:00:23]} Nd7 {[%emt 0:00:30]} 4. c3 {[%emt 0:00:30]} Ngf6 {[%emt 0:00:30]} 5. Qe2 {[%emt 0:00:30]} a6 {[%emt 0:00:30]} 6. Ba4 {[%emt 0:00:30]} b5 {[%emt 0:00:30]} 7. Bc2 {[%emt 0:00:00]} Bb7 {[%emt 0:01:52]} 8. d4 {[%emt 0:00:24]} e6 {[%emt 0:00:46]} 9. O-O {[%emt 0:00:09]} Be7 {[%emt 0:00:44]} 10. Nbd2 {[%emt 0:01:10]} Qc7 {[%emt 0:02:11]} 11. Bd3 {[%emt 0:00:30]} O-O {[%emt 0:00:30]} 12. b3 {[%emt 0:00:30]} e5 {[%emt 0:00:30]} 13. d5 {[%emt 0:00:30]} Nh5 {[%emt 0:00:30]} 14. g3 {[%emt 0:00:30]} f5 {[%emt 0:00:30]} 15. exf5 {[%emt 0:00:30]} Bxd5 {[%emt 0:00:30]} 16. c4 {[%emt 0:00:30]} Bb7 {[%emt 0:00:30]} 17. Ne4 {[%emt 0:00:30]} Qc6 {[%emt 0:00:30]} 18. Nfg5 {[%emt 0:00:30]} Bxg5 {[%emt 0:00:30]} 19. Bxg5 {[%emt 0:00:30]} Nhf6 {[%emt 0:00:30]} 1-0

[Event "VII Lorca Open 2018"]
[Site "Lorca"]
[Date "2018.12.28"]
[Round "4"]
[White "Ibarra Jerez, Jose Carlos"]
[Black "Bjerre, Jonas Buhl"]
[Result "1/2-1/2"]
[ECO "B47"]
[WhiteElo "2558"]
[BlackElo "2421"]
[Annotator "ChessBase"]
[PlyCount "31"]
[EventDate "2018.12.26"]
[EventType "swiss"]
[EventCountry "ESP"]
[SourceTitle "playchess.com"]
[Source "ChessBase"]
[SourceQuality "1"]
[TimeControl "5400+30"]

1. e4 {[%emt 0:00:00]} c5 {[%emt 0:00:00]} 2. Ne2 {[%emt 0:00:36]} Nc6 {[%emt 0:00:30]} 3. d4 {[%emt 0:00:51]} cxd4 {[%emt 0:00:23]} 4. Nxd4 {[%emt 0:00:17]} e6 {[%emt 0:00:22]} 5. Nc3 {[%emt 0:00:45]} Qc7 {[%emt 0:00:14]} 6. g3 {[%emt 0:00:45]} a6 {[%emt 0:00:36]} 7. Bg2 {[%emt 0:00:38]} Nf6 {[%emt 0:00:37]} 8. O-O {[%emt 0:00:45]} d6 {[%emt 0:00:58]} 9. Re1 {[%emt 0:01:23]} Nxd4 {[%emt 0:00:38]} 10. Qxd4 {[%emt 0:00:14]} Bd7 {[%emt 0:00:46]} 11. b3 {[%emt 0:11:59]} Be7 {[%emt 0:04:34]} 12. Bb2 {[%emt 0:02:06]} O-O {[%emt 0:02:08]} 13. Nd1 {[%emt 0:01:43]} b5 {[%emt 0:09:14]} 14. Ne3 {[%emt 0:04:02]} Bc6 {[%emt 0:03:54]} 15. Rad1 {[%emt 0:16:01]} Qb7 {[%emt 0:05:32]} 16. f3 {[%emt 0:07:12]} 1/2-1/2

[Event "VII Lorca Open 2018"]
[Site "Lorca"]
[Date "2018.12.28"]
[Round "4"]
[White "Pap, Misa"]
[Black "Merario Alarcon, Andres"]
[Result "1/2-1/2"]
[ECO "C56"]
[WhiteElo "2480"]
[BlackElo "2404"]
[Annotator "ChessBase"]
[PlyCount "30"]
[EventDate "2018.12.26"]
[EventType "swiss"]
[EventCountry "ESP"]
[SourceTitle "playchess.com"]
[Source "ChessBase"]
[SourceQuality "1"]
[TimeControl "5400+30"]

1. e4 {[%emt 0:00:00]} e5 {[%emt 0:00:00]} 2. Nf3 {[%emt 0:00:24]} Nc6 {[%emt 0:00:00]} 3. Bc4 {[%emt 0:00:10]} Nf6 {[%emt 0:00:06]} 4. d4 {[%emt 0:00:13]} exd4 {[%emt 0:00:12]} 5. e5 {[%emt 0:00:05]} d5 {[%emt 0:00:08]} 6. Bb5 {[%emt 0:00:06]} Ne4 {[%emt 0:00:05]} 7. Nxd4 {[%emt 0:00:07]} Bd7 {[%emt 0:00:07]} 8. Bxc6 {[%emt 0:00:12]} bxc6 {[%emt 0:00:09]} 9. O-O {[%emt 0:00:05]} Be7 {[%emt 0:00:09]} 10. f3 {[%emt 0:00:37]} Nc5 {[%emt 0:00:07]} 11. Be3 {[%emt 0:08:41]} Na4 {[%emt 0:00:53]} 12. b3 {[%emt 0:07:09]} Nb6 {[%emt 0:00:06]} 13. c3 {[%emt 0:01:39]} c5 {[%emt 0:01:21]} 14. Ne2 {[%emt 0:00:11]} a5 {[%emt 0:00:21]} 15. Nd2 {[%emt 0:13:16]} O-O {[%emt 0:00:14]} 1/2-1/2

[Event "VII Lorca Open 2018"]
[Site "Lorca"]
[Date "2018.12.28"]
[Round "4"]
[White "Nayhebaver, Martin"]
[Black "Grigoryan, Karen H."]
[Result "0-1"]
[ECO "B06"]
[WhiteElo "2460"]
[BlackElo "2557"]
[Annotator "ChessBase"]
[PlyCount "76"]
[EventDate "2018.12.26"]
[EventType "swiss"]
[EventCountry "ESP"]
[SourceTitle "playchess.com"]
[Source "ChessBase"]
[SourceQuality "1"]
[TimeControl "5400+30"]

1. e4 {[%emt 0:00:00]} g6 {[%emt 0:00:00]} 2. d4 {[%emt 0:00:03]} Bg7 {[%emt 0:00:00]} 3. Nc3 {[%emt 0:00:37]} d6 {[%emt 0:00:05]} 4. f4 {[%emt 0:00:39]} Nc6 {[%emt 0:01:50]} 5. Be3 {[%emt 0:06:42]} Nf6 {[%emt 0:00:35]} 6. Be2 {[%emt 0:01:18]} h5 {[%emt 0:05:04]} 7. h3 {[%emt 0:04:46]} h4 {[%emt 0:02:48]} 8. Qd2 {[%emt 0:04:20]} Nh5 {[%emt 0:01:46]} 9. Bxh5 {[%emt 0:00:43]} Rxh5 {[%emt 0:00:06]} 10. O-O-O {[%emt 0:00:55]} e6 {[%emt 0:06:09]} 11. Nge2 {[%emt 0:07:12]} d5 {[%emt 0:07:28]} 12. g4 {[%emt 0:09:07]} hxg3 {[%emt 0:00:15]} 13. Nxg3 {[%emt 0:00:06]} Rh8 {[%emt 0:00:08]} 14. exd5 {[%emt 0:00:47]} exd5 {[%emt 0:00:39]} 15. f5 {[%emt 0:00:16]} gxf5 {[%emt 0:02:05]} 16. Qg2 {[%emt 0:02:31]} Ne7 {[%emt 0:01:21]} 17. Bg5 {[%emt 0:08:44]} Be6 {[%emt 0:02:17]} 18. Rhe1 {[%emt 0:05:07]} Bh6 {[%emt 0:00:39]} 19. Nh5 {[%emt 0:01:53]} Kd7 {[%emt 0:07:47]} 20. Kb1 {[%emt 0:08:04]} Bxg5 {[%emt 0:03:57]} 21. Qxg5 {[%emt 0:00:27]} Ng8 {[%emt 0:00:36]} 22. Rg1 {[%emt 0:07:20]} Qxg5 {[%emt 0:00:53]} 23. Rxg5 {[%emt 0:00:06]} Rh6 {[%emt 0:03:42]} 24. Ne2 {[%emt 0:05:20]} Ne7 {[%emt 0:01:08]} 25. Nef4 {[%emt 0:03:57]} Rah8 {[%emt 0:00:27]} 26. Re1 {[%emt 0:02:41]} R8h7 {[%emt 0:02:47]} 27. Kc1 {[%emt 0:02:40]} Nc8 {[%emt 0:03:04]} 28. c4 {[%emt 0:01:52]} Ne7 {[%emt 0:04:06]} 29. cxd5 {[%emt 0:04:43]} Nxd5 {[%emt 0:00:42]} 30. a3 {[%emt 0:00:44]} f6 {[%emt 0:04:50]} 31. Rgg1 {[%emt 0:05:23]} Rxh5 {[%emt 0:01:55]} 32. Nxe6 {[%emt 0:00:17]} Re7 {[%emt 0:01:08]} 33. Nc5+ {[%emt 0:00:54]} Kc6 {[%emt 0:02:28]} 34. Rxe7 {[%emt 0:02:10]} Nxe7 {[%emt 0:00:15]} 35. Re1 {[%emt 0:00:01]} Nd5 {[%emt 0:00:24]} 36. Rf1 {[%emt 0:03:06]} b6 {[%emt 0:06:48]} 37. Ne6 {[%emt 0:00:21]} f4 {[%emt 0:01:22]} 38. Kd2 {[%emt 0:01:04]} Kd6 {[%emt 0:01:09]} 0-1

[Event "VII Lorca Open 2018"]
[Site "Lorca"]
[Date "2018.12.28"]
[Round "4"]
[White "Gomez Ledo, Roberto Carlos"]
[Black "Martin Duque, Jesus"]
[Result "1/2-1/2"]
[ECO "D00"]
[WhiteElo "2448"]
[BlackElo "2354"]
[Annotator "ChessBase"]
[PlyCount "30"]
[EventDate "2018.12.26"]
[EventType "swiss"]
[EventCountry "ESP"]
[SourceTitle "playchess.com"]
[Source "ChessBase"]
[SourceQuality "1"]
[TimeControl "5400+30"]

1. d4 {[%emt 0:00:00]} Nf6 {[%emt 0:02:43]} 2. Bf4 {[%emt 0:00:00]} d5 {[%emt 0:00:09]} 3. e3 {[%emt 0:00:29]} c5 {[%emt 0:00:06]} 4. c3 {[%emt 0:00:48]} Nc6 {[%emt 0:00:04]} 5. Nd2 {[%emt 0:00:49]} e6 {[%emt 0:00:11]} 6. Bd3 {[%emt 0:02:57]} Bd6 {[%emt 0:00:48]} 7. Bxd6 {[%emt 0:00:38]} Qxd6 {[%emt 0:00:02]} 8. f4 {[%emt 0:00:16]} Bd7 {[%emt 0:04:32]} 9. a3 {[%emt 0:01:45]} Rc8 {[%emt 0:05:10]} 10. Ngf3 {[%emt 0:01:40]} cxd4 {[%emt 0:06:17]} 11. cxd4 {[%emt 0:00:34]} Ne7 {[%emt 0:00:24]} 12. Ne5 {[%emt 0:13:18]} Qb6 {[%emt 0:03:15]} 13. O-O {[%emt 0:01:45]} Bb5 {[%emt 0:02:36]} 14. Qb3 {[%emt 0:16:48]} Bxd3 {[%emt 0:00:25]} 15. Qxd3 {[%emt 0:00:09]} O-O {[%emt 1:10:48]} 1/2-1/2